lending/lending_fUSD_20260328
["ID","MTS","AMOUNT","RATE_DAILY","PERIOD"]
[418969899,1774692632956,-500.0,0.00012873,2]
[418969900,1774692632966,-500.0,0.00012873,2]
[418969901,1774692632976,-1373.69048384,0.00012888,2]
[418969902,1774692632985,-1600.0,0.000129,4]
[418969903,1774692632995,-1046.8329771,0.00012918,2]
[418969904,1774692633013,-2222.8763441,0.00012918,2]
[418969905,1774692633026,-3165.23481391,0.00012918,2]
[418969906,1774692633036,-928.25317925,0.00012918,2]
[418969907,1774692633046,-155.45,0.00012981,2]
[418969908,1774692633056,-383.03129412,0.00012983,2]
[418969909,1774692633067,-250.0,0.00013,2]
[418969910,1774692633076,-3687.791,0.00013018,2]
[418969911,1774692633086,-240.877,0.00013018,2]
[418969912,1774692633096,-1081.92,0.00013036,2]
[418969913,1774692633107,-2996.90379889,0.00013072,2]
[418969914,1774692633117,-150.0,0.00013076,2]
[418969915,1774692633127,-150.0,0.00013076,2]
[418969916,1774692633137,-200.0,0.00013076,2]
[418969917,1774692633147,-529.0,0.00013111,2]
[418969918,1774692633156,-250.0,0.00013123,3]
[418969919,1774692633166,-2388.41395033,0.00013173,2]
[418969920,1774692633176,-255.0,0.00013174,2]
[418969921,1774692633186,-381.29235684,0.00013318,2]
[418969922,1774692633196,-1632.0,0.00013322,5]
[418969923,1774692633206,-1573.0,0.00013322,5]
[418969924,1774692633216,-383.03129412,0.00013347,2]
[418969925,1774692633227,-166.65,0.00013356,2]
[418969926,1774692633236,-502.40358019,0.00013421,2]
[418969927,1774692633246,-1000.0,0.00013421,2]
[418969928,1774692633257,-502.43638896,0.00013421,2]
[418969929,1774692633267,-1000.0,0.00013421,2]
[418969930,1774692633276,-502.53265423,0.00013421,2]
[418969931,1774692633286,-1001.48601759,0.00013421,2]
[418969932,1774692633296,-1001.63683479,0.00013421,2]
[418969933,1774692633306,-3240.0,0.00013425,2]
[418969934,1774692633316,-2996.90379889,0.00013425,2]
[418969935,1774692633326,-220293.62701015,0.000135,7]
[418969936,1774692633337,-1000.0,0.00013522,2]
[418969937,1774692633347,-1000.0,0.00013522,2]
[418969938,1774692633357,-1000.0,0.00013522,2]
[418969939,1774692633367,-1000.0,0.00013522,2]
[418969940,1774692633377,-1000.0,0.00013522,2]
[418969941,1774692633387,-1000.0,0.00013522,2]
[418969942,1774692633396,-1000.0,0.00013522,2]
[418969943,1774692633406,-901.6611409,0.00013522,2]
[418969944,1774692633426,-1021.461038,0.00013596,2]
[418969945,1774692633444,-1159.0,0.000136,7]
[418969946,1774692633461,-160.0,0.00013621,2]
[418969947,1774692633475,-882.437827,0.00013621,2]
[418969948,1774692633490,-353.760374,0.00013622,2]
[418969949,1774692633506,-2388.41395033,0.00013627,2]
[418969950,1774692633521,-1751.8012,0.00013647,2]
[418969951,1774692633536,-3310.202257,0.00013647,2]
[418969952,1774692633550,-171.622813,0.00013693,2]
[418969953,1774692633565,-500.0,0.00013698,2]
[418969954,1774692633580,-393.559,0.00013698,2]
[418969955,1774692633595,-1353.34,0.00013698,2]
[418969956,1774692633612,-1353.34,0.00013698,2]
[418969957,1774692633625,-1353.34,0.00013698,2]
[418969958,1774692633638,-1353.34,0.00013698,2]
[418969959,1774692633649,-1353.34,0.00013698,2]
[418969960,1774692633663,-1353.34,0.00013698,2]
[418969961,1774692633676,-1353.34,0.00013698,2]
[418969962,1774692633691,-500.0,0.00013698,2]
[418969963,1774692633705,-502.06999882,0.00013698,2]
[418969964,1774692633718,-548.00060355,0.00013698,2]
[418969965,1774692633733,-500.0,0.00013698,2]
[418969966,1774692633748,-500.0,0.00013698,2]
[418969967,1774692633763,-500.0,0.00013698,2]
[418969968,1774692633774,-500.0,0.00013698,2]
[418969969,1774692633785,-347.13414899,0.00013698,2]
[418969970,1774692633796,-500.0,0.00013698,2]
[418969971,1774692633810,-281.61641343,0.00013698,2]
[418969972,1774692633823,-500.0,0.00013698,2]
[418969973,1774692633836,-500.32992822,0.00013698,2]
[418969974,1774692633849,-500.0,0.00013698,2]
[418969975,1774692633864,-207.8534478,0.00013698,2]
[418969976,1774692633876,-500.0,0.00013698,2]
[418969977,1774692633892,-504.60520065,0.00013698,2]
[418969978,1774692633904,-500.0,0.00013699,2]
[418969979,1774692633916,-150.0,0.00013699,2]
[418969980,1774692633929,-150.0,0.00013699,2]
[418969981,1774692633941,-150.0,0.00013699,2]
[418969982,1774692633955,-150.0,0.00013699,2]
[418969983,1774692633968,-150.0,0.00013699,2]
[418969984,1774692633984,-684.06,0.00013699,2]
[418969985,1774692634001,-255.45,0.00013699,2]
[418969986,1774692634014,-212.88,0.00013699,2]
[418969987,1774692634027,-177.4,0.00013699,2]
[418969988,1774692634040,-887.02,0.00013699,2]
[418969989,1774692634052,-500.0,0.00013699,2]
[418969990,1774692634065,-500.0,0.00013699,2]
[418969991,1774692634078,-458.30257408,0.00013699,2]
[418969992,1774692634091,-264.52314394,0.00013699,2]
[418969993,1774692634104,-500.0,0.00013699,2]
[418969994,1774692634115,-500.0,0.00013699,2]
[418969995,1774692634127,-500.0,0.00013699,2]
[418969996,1774692634139,-500.0,0.00013699,2]
[418969997,1774692634151,-500.0,0.00013699,2]
[418969998,1774692634163,-319.1734162,0.00013699,2]
[418969999,1774692634175,-1403.92,0.000137,2]
[418970000,1774692634187,-749.79,0.000137,2]
[418970001,1774692634199,-2578.06,0.000137,2]
[418970002,1774692634211,-2420.06,0.000137,2]
[418970003,1774692634222,-155.45,0.00013702,2]
[418970004,1774692634234,-383.03129412,0.00013712,2]
[418970005,1774692634245,-188.372022,0.0001372,2]
[418970006,1774692634257,-165.23,0.00013768,2]
[418970007,1774692634269,-2996.90379889,0.00013779,2]
[418970008,1774692634282,-166.65,0.00013796,2]
[418970009,1774692634294,-166.67,0.00013874,2]
[418970010,1774692634306,-1353.34,0.00013899,2]
[418970011,1774692634317,-312.0,0.000139,2]
[418970012,1774692634330,-2351.0,0.00013926,2]
[418970013,1774692634341,-502.16371872,0.00013968,2]
[418970014,1774692634353,-150.0,0.00013973,2]
[418970015,1774692634365,-150.0,0.00013973,2]
[418970016,1774692634377,-150.0,0.00013973,2]
[418970017,1774692634389,-150.0,0.00013973,2]
[418970018,1774692634401,-150.0,0.00013973,2]
[418970019,1774692634413,-7141.28978269,0.00014,2]
[418970020,1774692634424,-154.46961229,0.00014025,2]
[418970021,1774692634436,-500.0,0.00014062,2]
[418970022,1774692634448,-383.03129412,0.00014077,2]
[418970023,1774692634459,-2388.41395033,0.00014082,2]
[418970024,1774692634471,-155.384,0.00014099,2]
[418970025,1774692634482,-3765.0,0.00014113,2]
[418970026,1774692634494,-6012.0,0.00014113,2]
[418970027,1774692634506,-2996.90379889,0.00014132,2]
[418970028,1774692634517,-250.0,0.00014183,2]
[418970029,1774692634530,-166.65,0.00014237,2]
[418970030,1774692634541,-150.0,0.00014247,2]
[418970031,1774692634555,-150.0,0.00014247,2]
[418970032,1774692634568,-150.0,0.00014247,2]
[418970033,1774692634579,-150.0,0.00014247,2]
[418970034,1774692634591,-832.58486862,0.00014247,2]
[418970035,1774692634602,-1000.0,0.00014247,2]
[418970036,1774692634614,-1000.0,0.00014247,2]
[418970037,1774692634625,-1000.0,0.00014247,2]
[418970038,1774692634637,-1000.0,0.00014247,2]
[418970039,1774692634648,-452.97866013,0.00014247,2]
[418970040,1774692634660,-1000.76994571,0.00014247,2]
[418970041,1774692634672,-2000.0,0.00014302,2]
[418970042,1774692634685,-350.1100225,0.00014309,2]
[418970043,1774692634698,-500.0,0.00014356,2]
[418970044,1774692634713,-500.0,0.00014356,2]
[418970045,1774692634725,-433.0,0.00014358,2]
[418970046,1774692634738,-684.06,0.00014384,2]
[418970047,1774692634750,-150.3355,0.000144,2]
[418970048,1774692634762,-1562.0,0.00014402,2]
[418970049,1774692634935,-1570.0,0.00014408,2]
[418970050,1774692634945,-1242.0,0.00014408,2]
[418970051,1774692634955,-155.45,0.00014423,2]
[418970052,1774692634964,-155.0,0.0001443,2]
[418970053,1774692634973,-383.03129412,0.00014441,2]
[418970054,1774692634983,-2996.90379889,0.00014486,2]
[418970055,1774692634992,-150.0,0.0001452,2]
[418970056,1774692635001,-150.0,0.0001452,2]
[418970057,1774692635010,-626.633,0.0001452,2]
[418970058,1774692635020,-11025.6791541,0.00014523,2]
[418970059,1774692635029,-2388.41395033,0.00014536,2]
[418970060,1774692635038,-150.0,0.00014558,3]
[418970061,1774692635047,-174.84,0.00014561,2]
[418970062,1774692635057,-152.0,0.0001457,3]
[418970063,1774692635066,-204.0,0.00014595,2]
[418970064,1774692635076,-166.67,0.00014597,2]
[418970065,1774692635085,-1000.0,0.00014609,2]
[418970066,1774692635094,-1205.31,0.00014611,2]
[418970067,1774692635104,-166.65,0.00014678,2]
[418970068,1774692635114,-2807.0,0.0001472,2]
[418970069,1774692635124,-1570.0,0.0001472,2]
[418970070,1774692635134,-1570.0,0.0001472,2]
[418970071,1774692635143,-161.0,0.0001472,2]
[418970072,1774692635153,-194.0,0.0001472,2]
[418970073,1774692635162,-865.0,0.0001472,2]
[418970074,1774692635172,-161.0,0.00014728,2]
[418970075,1774692635182,-333.67475347,0.00014795,2]
[418970076,1774692635191,-1500.0,0.00014795,2]
[418970077,1774692635202,-182.51086849,0.00014795,2]
[418970078,1774692635212,-1500.0,0.00014795,2]
[418970079,1774692635221,-264.01,0.00014797,2]
[418970080,1774692635230,-568.35,0.00014803,2]
[418970081,1774692635239,-383.03129412,0.00014806,2]
[418970082,1774692635248,-2996.90379889,0.00014839,2]
[418970083,1774692635257,-150.0,0.00014856,5]
[418970084,1774692635267,-156.3,0.00014858,2]
[418970085,1774692635276,-2460.1615554,0.00014966,2]
[418970086,1774692635285,-2388.41395033,0.00014991,2]
[418970087,1774692635294,-758.0,0.00015,2]
[418970088,1774692635303,-152.0,0.00015018,4]
[418970089,1774692635312,-161.0,0.0001504,2]
[418970090,1774692635321,-1570.0,0.0001504,2]
[418970091,1774692635331,-2807.0,0.0001504,2]
[418970092,1774692635339,-2807.0,0.00015048,2]
[418970093,1774692635349,-225.19,0.00015068,2]
[418970094,1774692635358,-684.06,0.00015068,2]
[418970095,1774692635367,-324.16889597,0.00015092,2]
[418970096,1774692635377,-166.65,0.00015119,2]
[418970097,1774692635387,-155.45,0.00015144,2]
[418970098,1774692635397,-250.0,0.00015153,2]
[418970099,1774692635406,-250.0,0.00015153,2]
[418970100,1774692635415,-250.0,0.00015153,2]
[418970101,1774692635423,-250.0,0.00015153,2]
[418970102,1774692635433,-250.0,0.00015153,2]
[418970103,1774692635442,-250.0,0.00015153,2]
[418970104,1774692635451,-250.0,0.00015153,2]
[418970105,1774692635461,-250.0,0.00015153,2]
[418970106,1774692635470,-250.0,0.00015153,2]
[418970107,1774692635480,-250.0,0.00015153,2]
[418970108,1774692635488,-250.0,0.00015153,2]
[418970109,1774692635498,-250.0,0.00015153,2]
[418970110,1774692635507,-220.268761,0.00015153,2]
[418970111,1774692635519,-251.59464626,0.00015157,2]
[418970112,1774692635528,-383.03129412,0.00015171,2]
[418970113,1774692635539,-2996.90379889,0.00015193,2]
[418970114,1774692635548,-3292.0,0.00015318,2]
[418970115,1774692635558,-166.67,0.00015321,2]
[418970116,1774692635568,-235.0,0.00015332,2]
[418970117,1774692635577,-2000.0,0.00015342,2]
[418970118,1774692635588,-2004.13989445,0.00015342,2]
[418970119,1774692635598,-286.0,0.0001535,2]
[418970120,1774692635608,-286.0,0.00015353,2]
[418970121,1774692635617,-161.0,0.0001536,2]
[418970122,1774692635627,-974.0,0.0001536,2]
[418970123,1774692635635,-1570.0,0.0001536,2]
[418970124,1774692635643,-161.0,0.0001536,2]
[418970125,1774692635652,-476.51346953,0.00015362,2]
[418970126,1774692635661,-155.0,0.0001538,2]
[418970127,1774692635670,-1403.92,0.000154,2]
[418970128,1774692635680,-749.79,0.000154,2]
[418970129,1774692635690,-2578.06,0.000154,2]
[418970130,1774692635699,-2420.06,0.000154,2]
[418970131,1774692635711,-150.0,0.000154,2]
[418970132,1774692635720,-1053.05347791,0.000154,2]
[418970133,1774692635730,-150.0,0.000154,2]
[418970134,1774692635739,-8281.08319486,0.000154,2]
[418970135,1774692635748,-150.0,0.000154,2]
[418970136,1774692635759,-1624.96331701,0.000154,2]
[418970137,1774692635769,-446.62781183,0.000154,2]
[418970138,1774692635778,-183.46745679,0.00015404,2]
[418970139,1774692635788,-226.36814293,0.00015405,2]
[418970140,1774692635797,-174.84,0.00015421,2]
[418970141,1774692635806,-2388.41395033,0.00015445,2]
[418970142,1774692635816,-152.0,0.00015466,5]
[418970143,1774692635825,-156.0,0.00015475,2]
[418970144,1774692635835,-3391.19,0.00015507,2]
[418970145,1774692635844,-235.0,0.00015516,2]
[418970146,1774692635854,-383.03129412,0.00015535,2]
[418970147,1774692635864,-166.65,0.0001556,2]
[418970148,1774692635875,-204.0,0.00015595,2]
[418970149,1774692635885,-2200.0,0.000156,5]
[418970150,1774692635895,-509.23,0.00015619,2]
[418970151,1774692635904,-736.0,0.00015651,2]
[418970152,1774692635915,-150.0,0.0001566,5]
[418970153,1774692635924,-161.0,0.0001568,2]
[418970154,1774692635933,-2700.0,0.000157,5]
[418970155,1774692635942,-500.0,0.00015726,2]
[418970156,1774692635951,-2000.0,0.00015732,2]
[418970157,1774692635960,-160.0,0.00015746,2]
[418970158,1774692635970,-160.0,0.00015746,2]
[418970159,1774692635979,-160.0,0.00015746,2]
[418970160,1774692635988,-959.64475997,0.00015746,2]
[418970161,1774692635998,-684.06,0.00015753,2]
[418970162,1774692636008,-156.3,0.00015764,2]
[418970163,1774692636018,-168.22,0.00015793,2]
[418970164,1774692636027,-500.0,0.000158,5]
[418970165,1774692636036,-235.0,0.00015818,2]
[418970166,1774692636045,-235.0,0.00015836,2]
[418970167,1774692636054,-155.45,0.00015865,2]
[418970168,1774692636064,-235.0,0.0001589,2]
[418970169,1774692636073,-1502.55264949,0.0001589,2]
[418970170,1774692636082,-3391.19,0.00015895,2]
[418970171,1774692636091,-383.03129412,0.000159,2]
[418970172,1774692636100,-350.1100225,0.000159,2]
[418970173,1774692636109,-500.0,0.000159,5]
[418970174,1774692636118,-2180.47123693,0.000159,2]
[418970175,1774692636127,-288.38852556,0.000159,2]
[418970176,1774692636137,-191.81662614,0.000159,2]
[418970177,1774692636146,-235.0,0.00015902,2]
[418970178,1774692636155,-152.0,0.00015913,6]
[418970179,1774692636164,-3645.56059989,0.0001596,2]
[418970180,1774692636173,-400.0,0.0001597,2]
[418970181,1774692636183,-700.0,0.0001597,2]
[418970182,1774692636192,-500.0,0.0001597,2]
[418970183,1774692636201,-900.0,0.0001597,2]
[418970184,1774692636210,-151.0,0.0001597,2]
[418970185,1774692636220,-151.0,0.0001597,2]
[418970186,1774692636229,-400.0,0.0001597,2]
[418970187,1774692636239,-700.0,0.0001597,2]
[418970188,1774692636249,-223.75654587,0.0001599,2]
[418970189,1774692636259,-223.75654587,0.0001599,2]
[418970190,1774692636268,-1353.34,0.00015999,2]
[418970191,1774692636277,-1353.34,0.00015999,2]
[418970192,1774692636286,-1353.34,0.00015999,2]
[418970193,1774692636296,-1353.34,0.00015999,2]
[418970194,1774692636305,-1353.34,0.00015999,2]
[418970195,1774692636315,-1353.34,0.00015999,2]
[418970196,1774692636325,-1353.34,0.00015999,2]
[418970197,1774692636335,-1353.34,0.00015999,2]
[418970198,1774692636346,-1353.34,0.00015999,2]
[418970199,1774692636355,-1353.34,0.00015999,2]
[418970200,1774692636366,-1353.34,0.00015999,2]
[418970201,1774692636375,-1353.34,0.00015999,2]
[418970202,1774692636385,-1353.34,0.00015999,2]
[418970203,1774692636394,-1353.34,0.00015999,2]
[418970204,1774692636403,-1353.34,0.00015999,2]
[418970205,1774692636412,-1353.36228162,0.00015999,2]
[418970206,1774692636421,-79062.15317895,0.00016,2]
[418970207,1774692636438,-691.78409667,0.00016,2]
[418970208,1774692636456,-61993.56663656,0.00016,2]
[418970209,1774692636467,-1306.980303,0.00016,2]
[418970210,1774692636489,-1171.37660082,0.00016,2]
[418970211,1774692637612,-291.74,0.00011839,2]
[418970212,1774692637622,-441.6,0.00012891,2]
[418970213,1774692637631,-151.0,0.00013698,2]
[418970214,1774692637640,-2218.75907791,0.00015546,2]
[418970215,1774692637652,-778.14472098,0.00015546,2]
[418970216,1774692637662,-2388.41395033,0.000159,2]
[418970217,1774692637672,-44682.47562383,0.00016,2]
[418970218,1774692637721,-1781.61641343,0.00016,2]
[418970219,1774692637827,-742591.52261938,0.00016,2]
[418970220,1774692637838,-1095325.89202162,0.00016,2]
[418970221,1774692637850,-300.87264012,0.00016,2]
[418970222,1774692637882,-2438.15312271,0.00016,2]
[418970223,1774692637936,-1132.68254729,0.00016,2]
[418970224,1774692639868,-1574.0,0.00014113,2]
[418970225,1774692639884,-91.054,0.00014113,2]
[418970226,1774692639895,-1308.946,0.000159,2]
[418970227,1774692640534,-1085.8166229,0.000159,2]
[418970251,1774692642807,-216.11259731,0.00015548,2]
[418970252,1774692642817,-602.14117599,0.000159,2]
[418970253,1774692642827,-18879.03312931,0.00016,2]
[418970254,1774692643229,-673.3,0.00016,2]
[418970255,1774692643286,-993.69252533,0.00016,2]
[418970302,1774692645780,-347.9,0.00016,2]
[418970303,1774692645835,-1388.7,0.00016,2]
[418970304,1774692645847,-453.49079995,0.00016,2]
[418970305,1774692657178,-1000.0,0.0002,30]
[418970307,1774692839804,-175.0,0.0002,30]
[418970308,1774692875074,-721.9,0.00011507,2]
[418970309,1774692906854,151.0,0.00011507,2]
[418970321,1774693175761,-250.0,0.00012576,2]
[418970322,1774693201016,1052.85,7.276e-05,2]
[418970323,1774693201207,1052.85,7.659e-05,2]
[418970324,1774693201395,1052.85,8.042e-05,2]
[418970325,1774693201594,1052.85,8.425e-05,2]
[418970326,1774693201785,1052.85,8.808e-05,2]
[418970327,1774693201976,1052.85,9.19e-05,2]
[418970328,1774693202182,1052.85,9.573e-05,2]
[418970329,1774693202369,1052.85,9.956e-05,2]
[418970330,1774693202563,1052.85,0.00010339,2]
[418970331,1774693202753,24.36,0.00010722,2]
[418970332,1774693202776,1028.49,0.00010722,2]
[418970333,1774693202942,1052.85,0.00011105,2]
[418970334,1774693203137,1052.85,0.00011488,2]
[418970335,1774693203331,1052.85,0.00011871,2]
[418970336,1774693203528,1052.85,0.00012254,2]
[418970340,1774693428393,210.71222404,0.00012,2]
[418970342,1774693483327,-171.79239017,0.0001261,2]
[418970343,1774693657482,-250.0,0.00012627,2]
[418970344,1774693657515,-1052.85,0.00012637,2]
[418970345,1774693657548,-1200.0,0.00012709,2]
[418970346,1774693657577,-300.0,0.00012709,2]
[418970347,1774693657605,-162.0,0.00012709,2]
[418970348,1774693657632,-232.0,0.00012709,2]
[418970349,1774693660153,-0.01,0.00012718,2]
[418970350,1774693663510,-0.02,0.00012718,2]
[418970351,1774693663599,-6803.11,0.00012718,2]
[418970352,1774693666493,-3196.86,0.00012718,2]
[418970353,1774693792727,999.0,0.00012718,2]
[418970355,1774693807060,666.0,0.00012718,2]
[418970356,1774693831825,-208.47217455,0.00012912,2]
[418970357,1774693831837,-166.66,0.00012953,2]
[418970358,1774693831849,-121.11627365,0.00012976,2]
[418970359,1774693831864,-128.88372635,0.00012976,2]
[418970360,1774693831877,-250.0,0.00013,2]
[418970361,1774693831889,-150.0,0.00013,2]
[418970362,1774693831900,-300.0,0.00013011,2]
[418970363,1774693831912,-1200.0,0.00013011,2]
[418970364,1774693831924,-150.0,0.00013011,2]
[418970365,1774693831939,-8882.6885148,0.00013012,2]
[418970366,1774693831953,-527.26145144,0.00013012,2]
[418970367,1774693831965,-633.48775828,0.00013012,2]
[418970368,1774693831977,-163.93651489,0.00013012,2]
[418970369,1774693831989,-284.94410162,0.00013012,2]
[418970370,1774693832001,-524.17339372,0.00013012,2]
[418970371,1774693832012,-152.51365651,0.00013012,2]
[418970372,1774693832023,-9999.99,0.0001302,2]
[418970373,1774693832035,-2440.11,0.0001302,2]
[418970374,1774693832046,-1052.85,0.0001302,2]
[418970375,1774693832058,-460.53478,0.00013067,2]
[418970376,1774693832070,-529.0,0.00013111,2]
[418970377,1774693832081,-532.0,0.00013111,2]
[418970378,1774693832093,-166.66,0.00013225,2]
[418970379,1774693832104,-1052.85,0.00013403,2]
[418970380,1774693832116,-500.0,0.00013494,2]
[418970381,1774693832128,-166.66,0.00013498,2]
[418970382,1774693832139,-1001.76089238,0.00013699,2]
[418970383,1774693832150,-166.66,0.00013771,2]
[418970384,1774693832162,-1052.85,0.00013786,2]
[418970385,1774693832173,-260.36077702,0.0001382,2]
[418970387,1774693832185,-816.43,0.00013907,2]
[418970389,1774693832197,-200.0,0.00013941,2]
[418970392,1774693832209,-1600.0,0.00013955,2]
[418970394,1774693832221,-500.0,0.0001396,2]
[418970396,1774693832233,-502.12815778,0.0001396,2]
[418970398,1774693832245,-500.0,0.0001396,2]
[418970401,1774693832257,-167.5141308,0.0001396,2]
[418970403,1774693832270,-451.07975321,0.0001396,2]
[418970405,1774693832281,-500.0,0.0001396,2]
[418970406,1774693832292,-314.67574079,0.0001396,2]
[418970407,1774693832303,-245.41415789,0.0001396,2]
[418970408,1774693832314,-164.27795554,0.0001396,2]
[418970409,1774693832512,-501.23124429,0.0001396,2]
[418970410,1774693832535,-500.0,0.0001396,2]
[418970411,1774693832546,-500.62783858,0.0001396,2]
[418970412,1774693832556,-1000.0,0.00013961,2]
[418970413,1774693832567,-327.09,0.00013962,2]
[418970414,1774693832578,-166.66,0.00014043,2]
[418970415,1774693832588,-24030.67,0.0001411,2]
[418970416,1774693832597,-4379.77,0.00014116,2]
[418970417,1774693832607,-255.0,0.00014117,2]
[418970418,1774693832617,-500.0,0.00014125,2]
[418970419,1774693832626,-1052.85,0.00014169,2]
[418970420,1774693832635,-3708.576,0.00014169,2]
[418970421,1774693832646,-241.783,0.00014169,2]
[418970422,1774693832656,-250.0,0.00014203,2]
[418970423,1774693832666,-250.0,0.00014248,2]
[418970424,1774693832675,-420.0,0.00014269,2]
[418970425,1774693832685,-1680.0,0.00014312,2]
[418970426,1774693832695,-166.66,0.00014316,2]
[418970427,1774693832705,-2807.0,0.000144,2]
[418970428,1774693832715,-1570.0,0.000144,2]
[418970429,1774693832724,-5578.07,0.00014488,2]
[418970430,1774693832733,-166.66,0.0001452,2]
[418970431,1774693832742,-3658.78,0.00014548,2]
[418970432,1774693832752,-1052.85,0.00014551,2]
[418970433,1774693832761,-839.698,0.00014563,2]
[418970434,1774693832770,-500.0,0.00014643,2]
[418970435,1774693832779,-161.0,0.0001472,2]
[418970436,1774693832788,-2807.0,0.0001472,2]
[418970437,1774693832799,-154.46961229,0.00014878,2]
[418970438,1774693832810,-150.4244,0.000149,2]
[418970439,1774693832819,-166.66,0.00014999,2]
[418970440,1774693832829,-1570.0,0.0001504,2]
[418970441,1774693832838,-1570.0,0.0001504,2]
[418970442,1774693832849,-1852.42,0.00015059,2]
[418970443,1774693832859,-217.94,0.00015089,2]
[418970444,1774693832870,-433.0,0.00015314,2]
[418970445,1774693832879,-266.0,0.00015363,2]
[418970446,1774693832890,-166.66,0.00015478,2]
[418970447,1774693832900,-160.0,0.00015609,2]
[418970448,1774693832910,-160.0,0.00015609,2]
[418970449,1774693832920,-959.64475997,0.00015609,2]
[418970450,1774693832932,-160.0,0.00015609,2]
[418970451,1774693832942,-587.0,0.00015648,2]
[418970452,1774693832951,-173.78224568,0.0001568,2]
[418970453,1774693832961,-1600.0,0.000157,2]
[418970454,1774693832972,-159.03982036,0.000157,2]
[418970455,1774693832982,-159.03982034,0.00015725,2]
[418970456,1774693832991,-2351.0,0.00015743,2]
[418970457,1774693833000,-159.03982034,0.0001575,2]
[418970458,1774693833010,-159.03982034,0.00015775,2]
[418970459,1774693833020,-365.81,0.00015799,2]
[418970460,1774693833029,-1557.0753,0.000158,2]
[418970461,1774693833039,-1177.3221,0.000158,2]
[418970462,1774693833048,-49699.81546032,0.000158,2]
[418970463,1774693833061,-14838.22837679,0.000158,2]
[418970464,1774693833077,-819.1793169,0.000158,2]
[418970465,1774693833088,-1447.89690395,0.000158,2]
[418970466,1774693833107,-471.336752,0.000158,2]
[418970467,1774693833154,-500.0,0.00015058,2]
[418970468,1774693833164,-305.848,0.00015058,2]
[418970469,1774693833175,-194.152,0.00015058,2]
[418970470,1774693833185,-411.87867279,0.00015058,2]
[418970474,1774693837886,-88.12132721,0.00015058,2]
[418970475,1774693837905,-180.249086,0.00015058,2]
[418970476,1774693837928,-248.13676679,0.00015058,2]
[418970477,1774693837944,-251.86323321,0.00015058,2]
[418970478,1774693837954,-189.85602074,0.00015058,2]
[418970479,1774693837964,-500.0,0.00015058,2]
[418970480,1774693837974,-500.0,0.00015058,2]
[418970481,1774693837985,-500.0,0.00015058,2]
[418970482,1774693837994,-478.67681789,0.00015058,2]
[418970483,1774693838008,-21.32318211,0.00015058,2]
[418970484,1774693838017,-500.0,0.00015058,2]
[418970485,1774693838027,-198.24572461,0.00015058,2]
[418970486,1774693838037,-336.70540753,0.00015058,2]
[418970487,1774693838051,-163.29459247,0.00015058,2]
[418970488,1774693838060,-499.23869151,0.00015058,2]
[418970489,1774693838070,-325.7491073,0.00015058,2]
[418970490,1774693838081,-324.58643734,0.00015058,2]
[418970491,1774693838091,-455.2795133,0.00015058,2]
[418970492,1774693838124,-44.7204867,0.00015058,2]
[418970493,1774693838134,-500.0,0.00015058,2]
[418970494,1774693838144,-500.0,0.00015058,2]
[418970495,1774693838155,-500.0,0.00015058,2]
[418970496,1774693838165,-500.0,0.00015058,2]
[418970498,1774693838175,-500.0,0.00015058,2]
[418970500,1774693838184,-500.0,0.00015058,2]